bitfinex/quotes_ETHUSD_20250326
["timestamp","ask_amount","ask_price","bid_price","bid_amount"]
[1743016627790,0.14683829,1992.2,1991.6,1.13581388]
[1743016628165,4.73489536,1992.2,1991.6,15.2658]
[1743016628355,0.14794657,1992.1,1991.7,1.52658]
[1743016628556,0.14794657,1992.1,1991.6,0.7658]
[1743016628859,0.14794657,1992.1,1991.6,15.2658]
[1743016629184,11.9511,1992.5,1991.6,20.66653345]
[1743016629384,0.14794657,1992.0,1991.6,19.90073345]
[1743016629565,6.8231,1992.5,1991.7,3.7957]
[1743016629759,0.14871739,1991.9,1991.8,0.37957]
[1743016629999,0.7631,1992.5,1991.8,0.37957]
[1743016630284,4.73489536,1992.2,1991.7,0.7957]
[1743016630450,4.73489536,1992.2,1991.5,0.37658]
[1743016630451,4.73489536,1992.0,1991.5,0.7957]
[1743016631073,0.14977708,1991.9,1991.5,0.7957]
[1743016631878,4.73489536,1991.8,1991.3,0.8043]
[1743016632083,0.14862105,1991.7,1991.3,0.8043]
[1743016632289,4.73489536,1992.0,1991.3,0.8043]
[1743016632485,0.14862105,1991.9,1991.3,0.8043]
[1743016632699,9.75458536,1992.2,1991.5,0.8312]
[1743016632889,0.14862105,1992.1,1991.5,0.8312]
[1743016633059,4.73489536,1992.0,1991.5,0.8312]
[1743016633263,4.73489536,1991.8,1991.2,1.21693282]
[1743016633469,0.14862105,1991.7,1991.2,0.8312]
[1743016634188,0.8036,1992.1,1991.4,0.7933]
[1743016634371,0.14862105,1991.6,1991.4,0.7933]
[1743016634556,0.8036,1992.3,1991.5,0.7933]
[1743016634761,5.139,1992.3,1991.7,0.7933]
[1743016634985,0.14789839,1992.2,1991.7,0.7933]
[1743016635895,0.14895825,1992.1,1991.7,0.7933]
[1743016636072,10.67449536,1992.5,1991.9,0.8068]
[1743016636255,0.14895825,1992.4,1991.9,0.8068]
[1743016637981,4.73489536,1992.1,1991.7,0.7739]
[1743016638490,0.15392047,1992.0,1991.7,0.7739]
[1743016639003,4.42261261,1992.0,1991.7,0.7739]
[1743016639900,4.26869214,1991.8,1991.5,0.7686]
[1743016640213,4.26869214,1991.6,1991.5,0.7686]
[1743016640400,4.26869214,1991.6,1991.3,0.7739]
[1743016640603,4.26869214,1991.5,1991.3,0.7739]
[1743016640803,4.42068583,1991.6,1991.3,0.7739]
[1743016641005,4.73033197,1991.7,1991.3,0.7739]
[1743016641502,0.15199369,1991.6,1991.3,0.7739]
[1743016643684,0.15199369,1991.6,1991.1,0.7605]
[1743016643685,4.73033197,1991.5,1991.1,0.7605]
[1743016644114,0.15136732,1991.4,1991.1,0.7605]
[1743016644820,4.73033197,1991.3,1990.8,2.66625435]
[1743016645019,4.73033197,1991.3,1990.8,0.7756]
[1743016645225,0.15083725,1991.2,1990.9,14.5]
[1743016645593,4.73033197,1991.3,1990.9,14.5]
[1743016645830,0.14534417,1991.1,1990.9,14.5]
[1743016646041,4.73033197,1991.3,1990.9,14.5]
[1743016646320,0.14534417,1991.2,1990.9,16.02756]
[1743016646532,0.14534417,1991.2,1991.0,0.05022479]
[1743016646703,0.14534417,1991.2,1991.1,0.7605]
[1743016646903,5.9217,1991.7,1991.1,0.7605]
[1743016647102,4.73033197,1991.4,1991.1,0.7605]
[1743016647319,4.73033197,1991.2,1990.9,0.7605]
[1743016647500,0.13666777,1991.1,1990.9,0.7605]
[1743016647705,4.73033197,1991.2,1990.9,0.7605]
[1743016647918,0.13666777,1991.1,1990.9,0.7605]
[1743016648334,4.73033197,1991.2,1990.9,0.7605]
[1743016648498,4.86699974,1991.0,1990.6,0.7605]
[1743016649531,0.13666777,1991.0,1990.6,0.7605]
[1743016650033,5.53783197,1991.3,1990.6,0.7605]
[1743016650240,0.13618528,1990.9,1990.6,1.13039423]
[1743016650411,5.53783197,1991.3,1990.6,1.13039423]
[1743016650613,5.53783197,1991.3,1990.7,1.01486319]
[1743016650614,0.13531668,1990.8,1990.7,1.01486319]
[1743016650934,5.126,1991.4,1990.8,0.7552]
[1743016651331,10.62693197,1991.6,1990.8,0.7552]
[1743016651541,10.62693197,1991.6,1990.9,0.8316]
[1743016651542,0.7696,1991.6,1990.9,0.8316]
[1743016651747,6.06,1991.7,1990.9,0.8316]
[1743016651929,15.70176197,1991.8,1990.9,0.8316]
[1743016652135,4.73033197,1991.6,1990.9,0.8316]
[1743016652634,4.73033197,1991.4,1990.9,0.8316]
[1743016652832,4.73033197,1991.6,1990.9,0.8316]
[1743016655058,4.73033197,1991.6,1991.0,0.0502175]
[1743016655653,4.73033197,1991.4,1990.9,0.8316]
[1743016656232,4.73033197,1991.4,1990.9,1.85974696]
[1743016656435,4.73033197,1991.4,1990.9,0.8316]
[1743016656639,4.73033197,1991.2,1990.7,0.75]
[1743016656839,4.73033197,1991.0,1990.7,0.75]
[1743016657428,4.73033197,1991.2,1990.7,0.75]
[1743016657723,6.06,1991.5,1990.7,0.75]
[1743016657924,6.06,1991.5,1990.8,0.80022222]
[1743016658527,6.06,1991.5,1990.9,1.01153959]
[1743016658727,10.67243197,1991.9,1991.0,0.75]
[1743016658941,4.73033197,1991.7,1991.0,0.75]
[1743016659328,4.73033197,1991.5,1991.0,0.75]
[1743016659919,9.85733197,1991.7,1991.0,0.75]
[1743016660124,9.85733197,1991.7,1991.1,0.9824035]
[1743016661821,6.8751,1991.9,1991.2,0.7604]
[1743016661822,5.54543197,1991.9,1991.2,0.7604]
[1743016662153,4.73033197,1992.3,1991.5,0.7604]
[1743016663033,4.73033197,1992.1,1991.5,0.7604]
[1743016663545,9.75016197,1992.1,1991.5,0.7604]
[1743016663746,6.28833717,1992.1,1991.5,0.7604]
[1743016664136,4.73033197,1991.9,1991.5,0.7604]
[1743016664751,0.1058894,1991.8,1991.5,0.7604]
[1743016666033,4.73033197,1991.7,1991.5,0.7604]
[1743016666237,4.73033197,1991.7,1991.3,0.7754]
[1743016666445,0.1037394,1991.6,1991.3,0.7754]
[1743016667360,0.1037394,1991.5,1991.3,0.7754]
[1743016667661,0.1037394,1991.5,1991.4,0.05021248]
[1743016667864,11.186,1992.1,1991.5,0.7754]
[1743016668062,5.126,1992.1,1991.5,0.7754]
[1743016669731,10.14584,1992.1,1991.5,0.7754]
[1743016669935,5.126,1992.1,1991.5,0.7754]
[1743016670763,10.14583,1992.1,1991.5,0.7754]
[1743016670941,12.2164152,1992.1,1991.5,0.7754]
[1743016671148,5.02016,1992.0,1991.5,0.7754]
[1743016671347,5.02016,1992.0,1991.2,0.37503584]
[1743016671348,9.75053197,1992.0,1991.3,0.7958]
[1743016671937,12.2164452,1992.1,1991.3,0.84601222]
[1743016672132,5.126,1992.1,1991.3,5.57634419]
[1743016672333,5.126,1992.1,1991.4,0.7958]
[1743016673337,0.55,1991.6,1991.4,0.7958]
[1743016678447,0.55,1991.6,1991.5,0.05020946]
[1743016678670,0.55,1991.6,1991.5,0.7761]
[1743016678844,0.55,1991.6,1991.5,1.36621]
[1743016679743,0.65422231,1991.6,1991.5,1.36621]
[1743016680539,0.55,1991.6,1991.5,1.36621]
[1743016680870,0.65422231,1991.6,1991.5,1.36621]
[1743016681277,4.26830342,1992.0,1991.5,1.36621]
[1743016681440,0.09553712,1991.6,1991.5,1.36621]
[1743016681653,4.26830342,1992.0,1991.5,1.36621]
[1743016681863,0.09553712,1991.6,1991.5,0.7761]
[1743016682051,4.26830342,1992.0,1991.5,0.7761]
[1743016682254,0.09553712,1991.6,1991.5,0.7761]
[1743016682557,0.09746849,1991.6,1991.5,0.7761]
[1743016682753,4.26830342,1992.0,1991.5,0.7761]
[1743016682969,0.09746849,1991.6,1991.5,0.7761]
[1743016683280,4.26830342,1992.0,1991.5,15.2761]
[1743016683479,0.09746849,1991.6,1991.5,15.2761]
[1743016683682,4.26830342,1992.0,1991.5,15.2761]
[1743016683865,0.09746849,1991.6,1991.5,15.2761]
[1743016684066,4.26830342,1992.0,1991.5,15.2761]
[1743016684261,0.09746849,1991.6,1991.5,15.2761]
[1743016684579,0.09746849,1991.6,1991.5,16.80371]
[1743016684780,4.26830342,1992.0,1991.5,16.80371]
[1743016685088,0.09746849,1991.6,1991.5,16.80371]
[1743016685300,5.01985,1992.1,1991.5,16.80371]
[1743016685485,0.09746849,1991.6,1991.5,14.5]
[1743016685963,4.26830342,1992.0,1991.5,14.5]
[1743016686159,0.09746849,1991.6,1991.3,3.7501]
[1743016686356,4.26830342,1992.0,1991.3,3.7501]
[1743016686557,0.09746849,1991.5,1991.4,14.5]
[1743016686763,4.26830342,1992.0,1991.4,16.32501]
[1743016687192,4.26830342,1991.8,1991.4,16.32501]
[1743016687689,5.05520342,1991.8,1991.4,16.32501]
[1743016687874,0.09746849,1991.7,1991.4,16.32501]
[1743016688863,5.05520342,1992.1,1991.5,0.05020845]
[1743016689190,16.85904,1992.3,1991.6,0.7978]
[1743016689389,0.09746849,1992.0,1991.6,0.7978]
[1743016689690,4.26830342,1991.9,1991.6,0.7978]
[1743016689900,4.36577191,1991.9,1991.4,0.7866]
[1743016690263,4.36577191,1991.9,1991.5,14.5]
[1743016690458,4.36577191,1991.9,1991.5,16.02866]
[1743016691463,4.26830342,1991.7,1991.2,0.8026]
[1743016691668,4.26830342,1991.4,1991.0,6.9226]
[1743016691888,4.26830342,1991.4,1991.0,0.8026]
[1743016692063,0.09804792,1991.3,1991.1,14.5]
[1743016692476,4.26830342,1991.3,1991.1,14.5]
[1743016692675,5.05520342,1991.5,1991.1,16.03026]
[1743016692888,4.36635134,1991.2,1990.5,28.975]
[1743016693212,5.02179,1991.4,1990.6,0.8031]
[1743016693213,4.36446809,1991.1,1990.6,0.8031]
[1743016693372,0.09616467,1991.1,1990.6,15.3031]
[1743016693881,0.09616467,1991.1,1990.7,1.02508891]
[1743016694087,5.14396809,1991.1,1990.7,2.6579078]
[1743016694398,0.09616467,1991.0,1990.6,0.8031]
[1743016694591,0.09616467,1991.0,1990.8,14.5]
[1743016694790,0.7795,1991.3,1990.8,14.5]
[1743016694974,0.09616467,1990.9,1990.8,14.5]
[1743016695171,5.04780342,1991.3,1990.8,15.95]
[1743016695372,0.09616467,1990.9,1990.8,15.95]
[1743016695572,4.26830342,1991.2,1990.8,15.95]
[1743016695784,0.09616467,1990.9,1990.8,15.95]
[1743016695981,10.06964342,1991.3,1990.8,15.95]
[1743016696199,0.09616467,1990.9,1990.8,15.95]
[1743016696402,4.26830342,1991.2,1990.8,15.95]
[1743016696606,0.7795,1991.3,1990.9,1.595]
[1743016697194,5.04560342,1991.4,1990.9,1.595]
[1743016697399,9.29015342,1991.3,1990.9,1.595]
[1743016697617,4.26830342,1991.2,1990.9,1.595]
[1743016698499,4.26830342,1991.0,1990.8,14.5]
[1743016698704,4.26830342,1991.1,1990.8,14.5]
[1743016698993,9.29050342,1991.2,1990.8,14.5]
[1743016699198,9.29015342,1991.3,1990.8,14.5]
[1743016699406,4.26830342,1991.2,1990.8,15.95]
[1743016699600,5.04560342,1991.4,1990.8,15.95]
[1743016699795,5.04560342,1991.4,1990.9,0.7923]
[1743016700404,4.26830342,1991.3,1990.9,0.7923]
[1743016700993,4.26830342,1991.2,1990.9,0.7923]
[1743016701183,4.26830342,1991.1,1990.9,0.7923]
[1743016701415,5.79896,1991.4,1990.9,2.46653]
[1743016701580,9.39430342,1991.4,1990.9,2.51675514]
[1743016701785,9.39430342,1991.4,1990.9,0.7923]
[1743016701984,9.39430342,1991.4,1991.0,14.5]
[1743016702515,4.26830342,1991.3,1991.0,14.5]
[1743016703382,4.26830342,1991.2,1991.0,14.5]
[1743016703586,4.26830342,1991.1,1990.6,1.83185805]
[1743016703785,4.26830342,1990.9,1990.6,1.83185805]
[1743016703998,4.26830342,1991.0,1990.6,1.83185805]
[1743016704707,5.02245,1991.1,1990.6,0.8118]
[1743016704908,4.26830342,1990.7,1990.1,0.8154]
[1743016705109,4.26830342,1990.3,1990.1,0.8154]
[1743016705501,4.26830342,1990.3,1990.2,14.5]
[1743016705711,4.26830342,1990.4,1990.2,14.5]
[1743016705912,4.26830342,1990.4,1990.2,16.03154]
[1743016706101,5.04390342,1990.5,1990.2,16.03154]
[1743016706313,4.26830342,1990.4,1990.2,16.03154]
[1743016706889,4.26830342,1990.3,1990.2,16.03154]
[1743016707718,5.04390342,1990.5,1990.2,16.03154]
[1743016707926,4.26830342,1990.7,1990.3,1.603154]
[1743016708428,5.02287,1990.9,1990.5,0.8025]
[1743016708429,4.26830342,1990.9,1990.5,0.8025]
[1743016708788,4.26830342,1990.7,1990.5,0.8025]
[1743016709191,4.26830342,1990.8,1990.5,0.8025]
[1743016709390,4.26830342,1990.9,1990.5,0.8025]
[1743016709633,4.26830342,1991.0,1990.5,0.85273284]
[1743016710292,0.7666,1991.2,1990.5,0.85273284]
[1743016710628,6.06,1991.6,1991.0,0.7662]
[1743016710925,4.26830342,1991.4,1991.0,0.7662]
[1743016711517,4.26830342,1991.6,1991.1,0.0502185]
[1743016711723,4.26830342,1991.5,1991.1,0.38164185]
[1743016711940,4.26830342,1991.4,1991.1,0.38164185]
[1743016712145,4.26830342,1991.2,1991.0,0.7662]
[1743016712319,4.26830342,1991.1,1990.7,1.7861706]
[1743016712495,4.26830342,1991.1,1990.8,14.5]
[1743016713125,4.26830342,1991.2,1990.8,14.5]
[1743016713328,5.126,1991.3,1990.9,1.45]
[1743016713710,5.126,1991.3,1990.8,0.05022504]
[1743016713909,4.26830342,1991.4,1990.9,14.5]
[1743016714123,4.26830342,1991.3,1990.9,14.5]
[1743016714321,4.26830342,1991.2,1990.9,14.5]
[1743016714525,4.26830342,1991.3,1990.9,14.5]
[1743016714817,4.26830342,1991.3,1991.0,1.45]
[1743016715022,9.28991342,1991.4,1991.0,1.45]
[1743016715621,4.26830342,1991.3,1991.0,1.45]
[1743016715826,4.26830342,1991.2,1990.9,14.5]
[1743016716031,4.26830342,1991.2,1990.7,0.7662]
[1743016716032,4.26830342,1991.0,1990.7,0.7662]
[1743016716445,4.26830342,1991.1,1990.7,0.7662]
[1743016716753,5.02143,1991.5,1990.7,0.7662]
[1743016716930,9.28973342,1991.5,1990.8,0.0502298]
[1743016717252,4.26830342,1991.4,1990.8,0.80847332]
[1743016717406,4.26830342,1991.4,1990.9,14.5]
[1743016718048,4.26830342,1991.2,1990.9,14.5]
[1743016718219,4.26830342,1991.3,1990.9,14.5]
[1743016719239,4.26830342,1991.4,1990.9,14.5]
[1743016719439,4.26830342,1991.4,1991.0,1.45]
[1743016719736,4.26830342,1991.4,1990.9,14.5]
[1743016719737,9.28990342,1991.4,1990.9,14.5]
[1743016720075,4.26830342,1991.2,1990.9,14.5]
[1743016720275,4.26830342,1991.2,1990.8,1.79368854]
[1743016720778,4.26830342,1991.2,1990.8,16.29368854]
[1743016721165,4.26830342,1991.0,1990.8,15.30847332]
[1743016721365,4.26830342,1991.0,1990.8,14.5]
[1743016721555,4.26830342,1990.9,1990.5,0.7518]
[1743016721751,4.26830342,1990.8,1990.5,0.7518]
[1743016721950,4.26830342,1990.9,1990.5,0.7518]
[1743016722172,9.29116342,1990.9,1990.5,15.2518]
[1743016722546,4.26830342,1990.7,1990.3,0.8005]
[1743016723163,4.26830342,1990.7,1990.4,14.5]
[1743016723360,6.06,1991.1,1990.4,14.5]
[1743016723557,4.26830342,1991.0,1990.4,14.5]
[1743016723786,9.29091342,1991.0,1990.4,14.5]
[1743016723992,9.29091342,1991.0,1990.5,1.45]
[1743016723993,4.26830342,1990.8,1990.5,1.45]
[1743016724170,4.26830342,1991.0,1990.5,1.45]
[1743016724400,4.26830342,1991.0,1990.3,1.82838876]
[1743016724401,4.26830342,1991.0,1990.4,0.05023587]
[1743016724581,4.26830342,1991.1,1990.5,14.5]
[1743016724889,4.26830342,1991.2,1990.6,0.794]
[1743016725978,11.11520342,1991.4,1990.8,0.7656]
[1743016726179,5.04090342,1991.6,1990.8,8.03390342]
[1743016726379,10.16590342,1991.6,1990.9,1.56899034]
[1743016726601,4.26830342,1991.3,1990.9,1.56899034]
[1743016726779,4.26830342,1991.0,1990.7,0.98871947]
[1743016726965,4.26830342,1990.9,1990.7,0.98871947]
[1743016727288,15.35048342,1991.2,1990.7,0.98871947]
[1743016727495,20.37278342,1991.2,1990.5,0.816]
[1743016727696,15.35048342,1991.2,1990.5,0.816]
[1743016727859,4.26830342,1991.1,1990.5,0.816]
[1743016728476,9.29067342,1991.1,1990.5,0.816]
[1743016728686,9.29067342,1991.1,1990.6,1.02486144]
[1743016728855,9.29067342,1991.1,1990.5,0.816]
[1743016729061,4.26830342,1991.0,1990.5,0.816]
[1743016730400,4.26830342,1991.0,1990.6,0.9932498]
[1743016731198,4.26830342,1991.1,1990.6,0.9932498]
[1743016731410,9.29079342,1991.1,1990.5,0.816]
[1743016731713,4.26830342,1990.6,1990.5,0.816]
[1743016732015,10.04803,1990.5,1990.0,0.7983]
[1743016732186,9.29246342,1990.4,1990.0,0.7983]
[1743016733113,4.26830342,1990.1,1989.5,0.8157]
[1743016733485,4.26830342,1990.2,1989.5,0.8157]
[1743016733687,4.26830342,1990.0,1989.5,0.8157]
[1743016734016,9.29321342,1990.1,1989.6,0.99756396]
[1743016734320,4.26830342,1990.1,1989.6,0.99756396]
[1743016734683,9.29320342,1990.1,1989.6,0.99756396]
[1743016734998,5.03360342,1990.1,1989.5,0.8157]
[1743016735403,10.05857342,1990.1,1989.5,0.8157]
[1743016735712,5.02523,1990.0,1989.5,1.81104939]
[1743016735879,10.05857342,1990.1,1989.5,1.81104939]
[1743016736286,5.03360342,1990.1,1989.5,1.81104939]
[1743016736496,4.26830342,1990.1,1989.5,1.81104939]
[1743016736691,5.02465,1990.2,1989.6,0.7605]
[1743016736692,4.26830342,1990.2,1989.6,0.7605]
[1743016737419,4.26830342,1990.1,1989.6,1.86553628]
[1743016737714,9.39330342,1990.3,1989.6,0.7605]
[1743016737895,9.39330342,1990.3,1989.7,0.7605]
[1743016739533,5.125,1990.3,1989.7,0.7605]
[1743016740324,6.06,1990.6,1989.9,0.7687]
[1743016740492,10.07856342,1990.7,1990.1,0.7687]
[1743016740816,10.07856342,1990.7,1990.1,1.27240034]
[1743016741014,10.07858342,1990.7,1990.1,0.7687]
[1743016741183,6.06,1990.9,1990.1,5.03700342]
[1743016741384,21.24024342,1991.1,1990.4,4.26830342]
[1743016741615,20.47674342,1991.1,1990.5,0.7753]
[1743016741817,4.26830342,1991.0,1990.5,0.7753]
[1743016742024,9.29091342,1991.0,1990.5,0.7753]
[1743016742193,4.26830342,1991.0,1990.5,0.7753]
[1743016742597,9.29091342,1991.0,1990.5,0.7753]
[1743016742904,16.20841,1991.1,1990.5,0.7753]
[1743016742905,20.47671342,1991.1,1990.5,0.7753]
[1743016743092,6.06,1991.1,1990.5,0.7753]
[1743016743425,6.06,1991.1,1990.6,0.832]
[1743016743725,22.01481,1991.5,1990.7,5.10030342]
[1743016743911,21.26155342,1991.5,1990.9,0.832]
[1743016744228,4.26830342,1991.4,1990.9,0.832]
[1743016744597,4.26830342,1991.3,1990.9,0.832]
[1743016744851,4.26830342,1991.0,1990.9,0.832]
[1743016745145,5.02224,1991.2,1990.9,0.832]
[1743016745305,4.73274866,1991.4,1990.9,0.832]
[1743016745306,9.75441866,1991.4,1990.9,0.832]
[1743016745505,5.02167,1991.4,1990.9,0.832]
[1743016745905,16.9933,1991.5,1990.9,0.832]
[1743016746323,5.0216,1991.4,1990.9,0.832]
[1743016747130,5.0219,1991.3,1990.9,0.832]
[1743016747330,9.75434866,1991.4,1990.9,0.832]
[1743016747703,9.75434866,1991.4,1990.3,5.125]
[1743016747704,4.73274866,1991.2,1990.7,0.7512]
[1743016747918,5.02241,1991.1,1990.7,0.7512]
[1743016748224,9.75487866,1991.2,1990.7,0.7512]
[1743016748426,14.77721866,1991.2,1990.7,0.7512]
[1743016748627,5.02239,1991.1,1990.7,0.7512]
[1743016749144,5.02212,1991.2,1990.7,0.7512]
[1743016749501,9.75435866,1991.4,1990.7,0.7512]
[1743016749700,14.77613866,1991.4,1990.7,0.7512]
[1743016749902,11.08135,1991.5,1990.7,0.8272]
[1743016750198,16.96545,1991.7,1990.9,5.85001]
[1743016750546,6.06,1991.7,1991.1,0.8272]
[1743016751039,6.06,1991.7,1991.2,0.8272]
[1743016752235,6.06,1991.7,1991.4,0.8272]
[1743016752399,11.07957,1992.2,1991.6,0.8272]
[1743016752597,6.06,1992.2,1991.6,0.8272]
[1743016752795,16.96297,1992.3,1991.6,0.8272]
[1743016753298,0.09524701,1992.2,1991.8,0.7981]
[1743016755431,0.09524701,1992.2,1991.8,1.18293019]
[1743016755999,0.09524701,1992.2,1991.9,0.87980017]
[1743016756204,0.09524701,1992.2,1991.9,0.8296]
[1743016756401,0.09524701,1992.2,1992.0,0.05019817]
[1743016756602,10.92721,1992.7,1992.1,0.8296]
[1743016756834,0.09930297,1992.6,1992.1,0.8296]
[1743016757033,5.01848,1992.7,1992.1,0.8296]
[1743016757263,9.75147866,1992.6,1992.1,0.8296]
[1743016757756,4.73274866,1992.6,1992.1,0.8296]
[1743016758156,25.95008866,1992.8,1992.1,0.8296]
[1743016758371,20.93181866,1992.8,1992.1,0.8296]
[1743016758739,25.95009866,1992.8,1992.1,0.8296]
[1743016759087,5.01832,1992.7,1992.1,0.8296]
[1743016762271,10.03687,1992.7,1992.1,0.8296]
[1743016762676,5.01832,1992.7,1992.1,0.8296]
[1743016762880,5.01863,1992.6,1992.1,0.8296]
[1743016763177,10.03686,1992.7,1992.1,0.8296]
[1743016763373,4.73274866,1992.6,1992.1,0.8296]
[1743016763551,4.73274866,1992.6,1991.9,0.7856]
[1743016763552,4.73274866,1992.4,1991.9,0.7856]
[1743016763747,5.80583,1992.5,1991.9,0.7856]
[1743016763748,5.01893,1992.5,1991.9,0.7856]
[1743016763938,4.73274866,1992.6,1991.9,0.7856]
[1743016764144,5.01837,1992.7,1991.9,3.0]
[1743016764361,5.01837,1992.7,1992.1,0.7879]
[1743016764854,4.2664349,1992.5,1992.1,0.7879]
[1743016765052,4.2664349,1992.4,1992.1,0.7879]
[1743016765256,4.2664349,1992.3,1992.1,0.7879]
[1743016765743,6.06,1992.7,1992.1,0.7879]
[1743016765938,9.2850949,1992.6,1992.1,0.7879]
[1743016766659,0.09411684,1992.5,1992.1,0.7879]
[1743016767263,4.36055174,1992.5,1992.1,0.7879]
[1743016767773,0.09411684,1992.5,1992.1,0.7879]
[1743016768071,4.2664349,1992.7,1992.1,0.7879]
[1743016768454,0.09406858,1992.6,1992.1,0.7879]
[1743016769157,0.09406858,1992.6,1992.1,5.0543349]
[1743016769369,0.09406858,1992.6,1992.3,0.7724]
[1743016769564,9.3542449,1992.9,1992.3,0.7724]
[1743016769885,0.09406858,1992.5,1992.3,0.7724]
[1743016770086,0.09474413,1992.4,1992.3,0.7724]
[1743016770288,4.2664349,1992.8,1992.3,0.7724]
[1743016770582,0.09580552,1992.7,1992.3,0.7724]
[1743016771283,9.2850049,1992.6,1992.3,0.7724]
[1743016771583,0.09575728,1992.5,1992.3,0.7724]
[1743016771756,4.36219218,1992.5,1992.3,0.7724]
[1743016772083,4.36219218,1992.5,1991.9,0.7554]
[1743016772084,4.2664349,1992.4,1991.9,0.7554]
[1743016772578,0.09575728,1992.3,1991.9,0.7554]
[1743016772788,0.09575728,1992.3,1991.9,0.80559479]
[1743016773083,0.09575728,1992.2,1992.1,0.7821]
[1743016773283,4.2664349,1992.6,1992.1,1.28695349]
[1743016773449,0.09575728,1992.5,1992.1,0.7821]
[1743016774265,0.09575728,1992.4,1992.1,0.7821]
[1743016774462,9.2847549,1992.7,1992.1,0.7821]
[1743016774772,0.09575728,1992.6,1992.1,0.7821]
[1743016774974,4.2664349,1992.5,1992.1,0.7821]
[1743016775163,4.36219218,1992.6,1992.1,0.7821]
[1743016775364,4.2664349,1992.6,1992.1,0.7821]
[1743016775588,0.09575728,1992.5,1992.1,0.7821]
[1743016776182,4.2664349,1992.7,1992.2,0.05019061]
[1743016776391,0.09575728,1992.4,1992.3,0.8225]
[1743016776563,4.2664349,1992.8,1992.3,0.8225]
[1743016776750,0.09677059,1992.4,1992.3,0.8225]
[1743016776952,4.2664349,1992.8,1992.3,0.8225]
[1743016777151,0.09677059,1992.7,1992.3,0.8225]
[1743016777875,4.36320549,1992.7,1992.3,0.8225]
[1743016778256,0.09677059,1992.7,1992.3,0.8225]
[1743016780493,4.3364349,1992.9,1992.3,0.8225]
[1743016780856,0.09710829,1992.8,1992.3,0.8225]
[1743016781056,4.36354319,1992.8,1992.3,0.8225]
[1743016781792,0.09710829,1992.8,1992.3,0.8225]
[1743016782105,4.36354319,1992.8,1992.3,0.8225]
[1743016782510,4.2664349,1992.7,1992.3,0.8225]
[1743016782808,0.09725301,1992.6,1992.3,0.8225]
[1743016783795,4.2664349,1992.8,1992.3,0.8225]
[1743016784171,0.09725301,1992.7,1992.3,0.8225]
[1743016784890,0.09725301,1992.7,1992.4,0.05018566]
[1743016785287,9.3542549,1992.9,1992.3,0.8225]
[1743016785617,0.09725301,1992.8,1992.3,0.8225]
[1743016786215,0.09725301,1992.8,1992.4,0.05018567]
[1743016786621,0.09725301,1992.8,1992.5,0.8226]
[1743016792119,0.09725301,1992.8,1992.6,0.05018156]
[1743016792319,0.09725301,1992.8,1992.7,10.0936449]
[1743016792525,0.09725301,1992.8,1992.7,11.10802755]
[1743016792723,0.07,1992.9,1992.7,15.31743755]
[1743016792890,0.07,1992.9,1992.8,5.0753349]
[1743016793233,0.07,1992.9,1992.8,5.12550498]
[1743016793428,0.07,1992.9,1992.8,0.8089]
[1743016793626,0.07,1992.9,1992.8,1.41787176]
[1743016793998,0.07,1992.9,1992.8,5.68430666]
[1743016794205,0.07,1992.9,1992.8,14.25236666]
[1743016796118,0.07,1992.9,1992.8,9.23430666]
[1743016796352,0.07,1992.9,1992.8,9.53287176]
[1743016796722,0.07,1992.9,1992.8,14.34930666]
[1743016796926,0.07,1992.9,1992.8,19.36736666]
[1743016797240,0.07,1992.9,1992.8,23.63380156]
[1743016798427,0.07,1992.9,1992.8,24.65595183]
[1743016799342,0.8798748,1994.0,1993.4,0.7506]
[1743016799535,0.10824577,1993.9,1993.4,3.7506]
[1743016799731,0.10824577,1993.9,1993.5,0.37506]
[1743016799932,0.10824577,1993.9,1993.5,0.75697127]
[1743016800554,0.10824577,1993.9,1993.6,0.05015545]
[1743016800748,0.10824577,1993.9,1993.8,5.0505349]
[1743016801147,0.10824577,1993.9,1993.8,0.7841]
[1743016801855,0.10824577,1993.9,1993.8,5.0505349]
[1743016802052,0.10824577,1993.9,1993.8,5.55558839]
[1743016802463,0.10824577,1993.9,1993.8,1.28915349]
[1743016802759,0.10824577,1993.9,1993.8,0.7841]
[1743016803125,0.10824577,1993.9,1993.8,15.2841]
[1743016804059,0.10824577,1993.9,1993.5,1.51547127]
[1743016804247,0.10824577,1993.9,1993.5,4.14041127]
[1743016804462,0.10824577,1993.9,1993.5,0.7585]
[1743016804646,5.12363577,1993.9,1993.5,0.7585]
[1743016804962,0.10824577,1993.9,1993.5,0.7585]
[1743016806256,4.37468067,1993.9,1993.5,0.7585]
[1743016806431,9.38999067,1993.9,1993.6,14.5]
[1743016807040,0.10824577,1993.9,1993.7,0.7744]
[1743016807459,0.10824577,1993.9,1993.6,15.2744]
[1743016807667,0.10824577,1993.9,1993.6,16.80184]
[1743016810564,0.10824577,1993.9,1993.6,2.30184]
[1743016810742,4.2664349,1993.7,1993.3,0.7744]
[1743016810944,9.2827449,1993.5,1993.1,0.7744]
[1743016811183,0.10290363,1993.4,1993.2,14.5]
[1743016813282,5.11945363,1993.4,1992.9,0.8071]
[1743016813476,0.10290363,1993.4,1992.9,0.8071]
[1743016813776,0.10290363,1993.4,1993.0,14.55016957]
[1743016813979,0.10290363,1993.4,1993.0,18.7664349]
[1743016814157,6.8585,1993.7,1993.2,0.8146]
[1743016814343,0.10092648,1993.6,1993.2,0.8146]
[1743016814553,6.06,1993.7,1993.2,0.8146]
[1743016814749,0.10184282,1993.6,1993.3,14.5]
[1743016814949,4.2664349,1993.7,1993.3,16.03146]
[1743016815247,5.11789282,1993.6,1993.3,14.5]
[1743016815454,4.2664349,1993.4,1993.3,14.5]
[1743016815871,4.36798837,1993.4,1993.3,14.5]
[1743016816074,9.38453837,1993.4,1993.3,14.5]
[1743016816255,4.36798837,1993.4,1993.3,14.5]
[1743016816461,4.36798837,1993.4,1992.9,0.8132]
[1743016816883,4.36798837,1993.4,1993.0,14.5]
[1743016817192,4.36798837,1993.4,1993.0,16.03132]
[1743016817488,0.10155347,1993.4,1993.2,3.8279]